[Event "Late-Titled-Tuesday-Blitz-June-25-2024"]
[Site "Chess.com"]
[Date "2024.06.25"]
[Round "10"]
[White "Gangster-accountant01"]
[Black "Boundless_Strike"]
[Result "1/2-1/2"]
[WhiteElo "2604"]
[BlackElo "2720"]
[TimeControl "180+1"]
[EndTime "15:57:04 PDT"]
[Termination "Game drawn by stalemate"]

1. d4 {[%clk 0:02:59.6]} 1... e5 {[%clk 0:03:00.2]} 2. dxe5 {[%clk 0:02:58.4]}
2... d6 {[%clk 0:03:00.9]} 3. exd6 {[%clk 0:02:42.1]} 3... Bxd6 {[%clk
0:03:01.8]} 4. Nc3 {[%clk 0:02:42]} 4... Qe7 {[%clk 0:02:58.4]} 5. Nf3 {[%clk
0:02:35.5]} 5... Bg4 {[%clk 0:02:56.7]} 6. e3 {[%clk 0:02:33.1]} 6... Nc6 {[%clk
0:02:56.4]} 7. Be2 {[%clk 0:02:31.8]} 7... O-O-O {[%clk 0:02:56]} 8. Bd2 {[%clk
0:02:31.3]} 8... Nf6 {[%clk 0:02:55.9]} 9. h3 {[%clk 0:02:30.8]} 9... h5 {[%clk
0:02:56.5]} 10. hxg4 {[%clk 0:02:26.8]} 10... hxg4 {[%clk 0:02:57.4]} 11. Rxh8
{[%clk 0:02:25.1]} 11... Rxh8 {[%clk 0:02:58.3]} 12. Ng1 {[%clk 0:02:25.2]}
12... Rh1 {[%clk 0:02:57.2]} 13. Bf1 {[%clk 0:01:30]} 13... Rxg1 {[%clk
0:02:51.9]} 14. Qe2 {[%clk 0:01:29.3]} 14... g3 {[%clk 0:01:58.1]} 15. O-O-O
{[%clk 0:01:27.6]} 15... gxf2 {[%clk 0:01:58.5]} 16. Qxf2 {[%clk 0:01:27.7]}
16... Rh1 {[%clk 0:01:58.7]} 17. Bd3 {[%clk 0:01:19.5]} 17... Rxd1+ {[%clk
0:01:57.9]} 18. Nxd1 {[%clk 0:01:19.9]} 18... Kb8 {[%clk 0:01:58.8]} 19. Qh4
{[%clk 0:01:17]} 19... Qe8 {[%clk 0:01:53.5]} 20. a3 {[%clk 0:01:10.1]} 20...
Ne5 {[%clk 0:01:52.1]} 21. Be2 {[%clk 0:01:04.1]} 21... a6 {[%clk 0:01:48.3]}
22. Nc3 {[%clk 0:01:00.7]} 22... Ng6 {[%clk 0:01:42]} 23. Qf2 {[%clk 0:00:53.3]}
23... Be5 {[%clk 0:01:37.6]} 24. Bd3 {[%clk 0:00:45.6]} 24... Ne7 {[%clk
0:01:36.4]} 25. Kb1 {[%clk 0:00:32]} 25... Ned5 {[%clk 0:01:35.9]} 26. Nxd5
{[%clk 0:00:29]} 26... Nxd5 {[%clk 0:01:36.8]} 27. e4 {[%clk 0:00:29.1]} 27...
Nf6 {[%clk 0:01:26.3]} 28. Qc5 {[%clk 0:00:26.4]} 28... Bd6 {[%clk 0:01:24.9]}
29. Qd4 {[%clk 0:00:24.8]} 29... Qe5 {[%clk 0:01:23.7]} 30. Qc4 {[%clk
0:00:22.6]} 30... Qe6 {[%clk 0:01:11.5]} 31. Qd4 {[%clk 0:00:13.8]} 31... g6
{[%clk 0:00:59.1]} 32. Bc3 {[%clk 0:00:11.5]} 32... Nd7 {[%clk 0:00:58.6]} 33.
Bc4 {[%clk 0:00:10.8]} 33... Qe8 {[%clk 0:00:55.6]} 34. Qg7 {[%clk 0:00:09.3]}
34... Be5 {[%clk 0:00:51.2]} 35. Qxf7 {[%clk 0:00:07.4]} 35... Qxf7 {[%clk
0:00:51.8]} 36. Bxf7 {[%clk 0:00:08]} 36... Bxc3 {[%clk 0:00:52.6]} 37. bxc3
{[%clk 0:00:08.8]} 37... Ne5 {[%clk 0:00:53.5]} 38. Be6 {[%clk 0:00:08.1]} 38...
c5 {[%clk 0:00:54.2]} 39. Kc1 {[%clk 0:00:07.9]} 39... Kc7 {[%clk 0:00:54.5]}
40. Kd2 {[%clk 0:00:08.6]} 40... Kd6 {[%clk 0:00:54.8]} 41. Bd5 {[%clk
0:00:08.9]} 41... b6 {[%clk 0:00:54.5]} 42. Ke3 {[%clk 0:00:09.4]} 42... Ke7
{[%clk 0:00:54.8]} 43. Kf4 {[%clk 0:00:09.7]} 43... Kf6 {[%clk 0:00:55.5]} 44.
a4 {[%clk 0:00:07.9]} 44... a5 {[%clk 0:00:54.9]} 45. c4 {[%clk 0:00:07.7]}
45... Nd7 {[%clk 0:00:52.3]} 46. c3 {[%clk 0:00:07]} 46... Ne5 {[%clk
0:00:52.4]} 47. g3 {[%clk 0:00:06.1]} 47... Nd3+ {[%clk 0:00:51.8]} 48. Ke3
{[%clk 0:00:05.7]} 48... Ne5 {[%clk 0:00:47.2]} 49. Bg8 {[%clk 0:00:03.9]} 49...
Kg5 {[%clk 0:00:46.3]} 50. Be6 {[%clk 0:00:03.3]} 50... Kf6 {[%clk 0:00:33]} 51.
Bd5 {[%clk 0:00:03.7]} 51... Nd7 {[%clk 0:00:29]} 52. Kf4 {[%clk 0:00:04]} 52...
g5+ {[%clk 0:00:29.5]} 53. Kg4 {[%clk 0:00:04.4]} 53... Ne5+ {[%clk 0:00:29.7]}
54. Kh5 {[%clk 0:00:04.2]} 54... Nd3 {[%clk 0:00:29.4]} 55. Kh6 {[%clk
0:00:04.1]} 55... Ne5 {[%clk 0:00:27.7]} 56. Kh5 {[%clk 0:00:03.1]} 56... Nf3
{[%clk 0:00:17.8]} 57. Bc6 {[%clk 0:00:02.7]} 57... Ne5 {[%clk 0:00:07]} 58. Bb5
{[%clk 0:00:03.3]} 58... Nd3 {[%clk 0:00:06]} 59. Kh6 {[%clk 0:00:03.3]} 59...
Ne5 {[%clk 0:00:02.7]} 60. Kh7 {[%clk 0:00:03.8]} 60... Nf3 {[%clk 0:00:01.7]}
61. Kg8 {[%clk 0:00:02.4]} 61... Nd2 {[%clk 0:00:01.9]} 62. Kf8 {[%clk 0:00:01]}
62... Nxe4 {[%clk 0:00:01.9]} 63. g4 {[%clk 0:00:01.9]} 63... Nxc3 {[%clk
0:00:02]} 64. Ke8 {[%clk 0:00:02.5]} 64... Ke5 {[%clk 0:00:02.3]} 65. Kd7 {[%clk
0:00:02.7]} 65... Ne4 {[%clk 0:00:02.3]} 66. Kc6 {[%clk 0:00:03.3]} 66... Nf6
{[%clk 0:00:03]} 67. Kxb6 {[%clk 0:00:04.2]} 67... Kd6 {[%clk 0:00:03.3]} 68.
Kxa5 {[%clk 0:00:05.1]} 68... Nxg4 {[%clk 0:00:04]} 69. Kb6 {[%clk 0:00:06]}
69... Nf6 {[%clk 0:00:03.9]} 70. a5 {[%clk 0:00:06.9]} 70... Ne8 {[%clk
0:00:04.4]} 71. Bxe8 {[%clk 0:00:06.9]} 71... g4 {[%clk 0:00:03.6]} 72. Bc6
{[%clk 0:00:07.8]} 72... g3 {[%clk 0:00:04.2]} 73. Bg2 {[%clk 0:00:08.7]} 73...
Ke5 {[%clk 0:00:04.5]} 74. a6 {[%clk 0:00:09.6]} 74... Kd4 {[%clk 0:00:05]} 75.
a7 {[%clk 0:00:10.5]} 75... Ke3 {[%clk 0:00:05.9]} 76. a8=Q {[%clk 0:00:10.9]}
76... Kf2 {[%clk 0:00:06.8]} 77. Qf3+ {[%clk 0:00:11.4]} 77... Kg1 {[%clk
0:00:07.7]} 78. Qxg3 {[%clk 0:00:11.9]} 1/2-1/2

[Event "Late-Titled-Tuesday-Blitz-June-25-2024"]
[Site "Chess.com"]
[Date "2024.06.25"]
[Round "10"]
[White "LiemLe"]
[Black "SpeedofLight0"]
[Result "0-1"]
[WhiteElo "3015"]
[BlackElo "3149"]
[TimeControl "180+1"]
[EndTime "15:57:17 PDT"]
[Termination "SpeedofLight0 won on time"]

1. Nf3 {[%clk 0:03:00.9]} 1... d6 {[%clk 0:02:59.2]} 2. d4 {[%clk 0:03:00.1]}
2... g6 {[%clk 0:02:58.7]} 3. e4 {[%clk 0:03:00]} 3... Bg7 {[%clk 0:02:58.9]} 4.
Nc3 {[%clk 0:03:00.3]} 4... a6 {[%clk 0:02:59]} 5. a4 {[%clk 0:02:46]} 5... Nc6
{[%clk 0:02:58.9]} 6. h3 {[%clk 0:02:42.6]} 6... Nf6 {[%clk 0:02:57.9]} 7. Be3
{[%clk 0:02:41]} 7... O-O {[%clk 0:02:54.9]} 8. Be2 {[%clk 0:02:39.8]} 8... e5
{[%clk 0:02:54.1]} 9. dxe5 {[%clk 0:02:39.6]} 9... Nxe5 {[%clk 0:02:55]} 10.
Nxe5 {[%clk 0:02:28.3]} 10... dxe5 {[%clk 0:02:55.9]} 11. Qxd8 {[%clk
0:02:28.6]} 11... Rxd8 {[%clk 0:02:56.8]} 12. Bc4 {[%clk 0:02:28.7]} 12... Re8
{[%clk 0:02:37.6]} 13. Ke2 {[%clk 0:02:19.5]} 13... Be6 {[%clk 0:02:35.8]} 14.
Bxe6 {[%clk 0:02:19.4]} 14... Rxe6 {[%clk 0:02:36.7]} 15. Rhd1 {[%clk
0:02:19.1]} 15... Bf8 {[%clk 0:02:28.5]} 16. f3 {[%clk 0:02:06.8]} 16... Bb4
{[%clk 0:02:19.7]} 17. Na2 {[%clk 0:02:03.6]} 17... Bd6 {[%clk 0:02:19.4]} 18.
a5 {[%clk 0:01:48.7]} 18... Nh5 {[%clk 0:02:12.8]} 19. c4 {[%clk 0:01:47.8]}
19... Nf4+ {[%clk 0:01:41.1]} 20. Kf2 {[%clk 0:01:35.6]} 20... Ree8 {[%clk
0:01:35.7]} 21. c5 {[%clk 0:01:28.8]} 21... Bf8 {[%clk 0:01:33.7]} 22. Rd7
{[%clk 0:01:25.9]} 22... Ne6 {[%clk 0:01:32.7]} 23. b4 {[%clk 0:01:19.4]} 23...
Rad8 {[%clk 0:01:31.2]} 24. Rad1 {[%clk 0:01:17]} 24... Rxd7 {[%clk 0:01:28.3]}
25. Rxd7 {[%clk 0:01:17.9]} 25... Rd8 {[%clk 0:01:29.1]} 26. Rxd8 {[%clk
0:01:18.1]} 26... Nxd8 {[%clk 0:01:30]} 27. Ke2 {[%clk 0:01:18.4]} 27... f6
{[%clk 0:01:20.9]} 28. Nc3 {[%clk 0:01:15.5]} 28... Kf7 {[%clk 0:01:17.2]} 29.
Kd3 {[%clk 0:01:13.7]} 29... Ke6 {[%clk 0:01:14.5]} 30. Kc4 {[%clk 0:01:11.7]}
30... c6 {[%clk 0:01:12.1]} 31. Ne2 {[%clk 0:01:06.5]} 31... Nf7 {[%clk
0:01:09.3]} 32. Kd3 {[%clk 0:00:55.5]} 32... f5 {[%clk 0:00:56.5]} 33. Bd2
{[%clk 0:00:44.6]} 33... Be7 {[%clk 0:00:53.4]} 34. Nc3 {[%clk 0:00:40]} 34...
Bh4 {[%clk 0:00:51.8]} 35. Nd1 {[%clk 0:00:39.9]} 35... Bd8 {[%clk 0:00:31.8]}
36. Nb2 {[%clk 0:00:38.4]} 36... h5 {[%clk 0:00:29.9]} 37. Nc4 {[%clk
0:00:36.9]} 37... Bc7 {[%clk 0:00:30.3]} 38. Be1 {[%clk 0:00:34.3]} 38... Kf6
{[%clk 0:00:28.8]} 39. Bc3 {[%clk 0:00:28.9]} 39... Kg5 {[%clk 0:00:25.7]} 40.
Ke3 {[%clk 0:00:20.9]} 40... h4 {[%clk 0:00:19.6]} 41. Kd3 {[%clk 0:00:17.5]}
41... Kf4 {[%clk 0:00:16.2]} 42. Be1 {[%clk 0:00:17.5]} 42... Kg5 {[%clk
0:00:14.3]} 43. Bd2+ {[%clk 0:00:16.6]} 43... Kf6 {[%clk 0:00:13.7]} 44. Be3
{[%clk 0:00:14.9]} 44... Ke6 {[%clk 0:00:13.1]} 45. Bf2 {[%clk 0:00:14.9]} 45...
Bd8 {[%clk 0:00:13.6]} 46. Be1 {[%clk 0:00:14.8]} 46... Bf6 {[%clk 0:00:13.4]}
47. Ne3 {[%clk 0:00:14]} 47... Bg5 {[%clk 0:00:09.6]} 48. Nc4 {[%clk 0:00:12]}
48... Bf6 {[%clk 0:00:10.2]} 49. Bc3 {[%clk 0:00:11.7]} 49... Be7 {[%clk
0:00:07.9]} 50. Bd2 {[%clk 0:00:11.9]} 50... Bf6 {[%clk 0:00:08.1]} 51. Bc1
{[%clk 0:00:07.6]} 51... Bd8 {[%clk 0:00:08.4]} 52. Be3 {[%clk 0:00:06.3]} 52...
Bc7 {[%clk 0:00:08.3]} 53. Bf2 {[%clk 0:00:06.3]} 53... Bd8 {[%clk 0:00:08.6]}
54. Nb2 {[%clk 0:00:06.4]} 54... Kf6 {[%clk 0:00:06.7]} 55. Ke2 {[%clk
0:00:06.1]} 55... Ke6 {[%clk 0:00:06.8]} 56. Kd3 {[%clk 0:00:06]} 56... Bf6
{[%clk 0:00:06.4]} 57. Nd1 {[%clk 0:00:05.5]} 57... Be7 {[%clk 0:00:06.7]} 58.
Nc3 {[%clk 0:00:05.7]} 58... Nd8 {[%clk 0:00:05.7]} 59. Ne2 {[%clk 0:00:05.6]}
59... Kf7 {[%clk 0:00:05.7]} 60. Be1 {[%clk 0:00:05.1]} 60... Ne6 {[%clk
0:00:06.1]} 61. Bc3 {[%clk 0:00:05.6]} 61... Bf6 {[%clk 0:00:06.5]} 62. Kc4
{[%clk 0:00:05.5]} 62... Ke7 {[%clk 0:00:06.5]} 63. Nc1 {[%clk 0:00:05.7]} 63...
Nf4 {[%clk 0:00:06.6]} 64. Nd3 {[%clk 0:00:05.9]} 64... Nxg2 {[%clk 0:00:06.8]}
65. Bxe5 {[%clk 0:00:04.9]} 65... Bxe5 {[%clk 0:00:04.7]} 66. Nxe5 {[%clk
0:00:05.8]} 66... Nf4 {[%clk 0:00:05.3]} 67. Kd4 {[%clk 0:00:03.9]} 67... Ke6
{[%clk 0:00:05.2]} 68. Nc4 {[%clk 0:00:02.8]} 68... Nxh3 {[%clk 0:00:05.2]} 69.
Nd6 {[%clk 0:00:03.1]} 69... Ng5 {[%clk 0:00:03.2]} 70. exf5+ {[%clk 0:00:03.3]}
70... gxf5 {[%clk 0:00:03.9]} 71. Ke3 {[%clk 0:00:03.9]} 71... h3 {[%clk
0:00:04.1]} 72. Kf2 {[%clk 0:00:03.3]} 72... h2 {[%clk 0:00:04.7]} 73. Kg2
{[%clk 0:00:03.9]} 73... Nxf3 {[%clk 0:00:05.3]} 74. Nxb7 {[%clk 0:00:04.5]}
74... Kd5 {[%clk 0:00:04.9]} 75. Nd6 {[%clk 0:00:04.6]} 75... f4 {[%clk
0:00:04.6]} 76. Nc8 {[%clk 0:00:04.7]} 76... Kc4 {[%clk 0:00:04.4]} 77. Na7
{[%clk 0:00:04]} 77... Nd4 {[%clk 0:00:05]} 78. Kxh2 {[%clk 0:00:03.8]} 78...
Kxb4 {[%clk 0:00:05.4]} 79. Kg2 {[%clk 0:00:03.4]} 79... Kxc5 {[%clk 0:00:05.7]}
80. Kf2 {[%clk 0:00:03.7]} 80... Kd6 {[%clk 0:00:05.9]} 81. Nc8+ {[%clk
0:00:03.4]} 81... Kc7 {[%clk 0:00:06.3]} 82. Nb6 {[%clk 0:00:04.3]} 82... c5
{[%clk 0:00:05.6]} 83. Nc4 {[%clk 0:00:04.7]} 83... Kc6 {[%clk 0:00:05.9]} 84.
Ne5+ {[%clk 0:00:03.8]} 84... Kd5 {[%clk 0:00:06.4]} 85. Nd3 {[%clk 0:00:04.7]}
85... f3 {[%clk 0:00:06.7]} 86. Nf4+ {[%clk 0:00:03.9]} 86... Ke4 {[%clk
0:00:06.9]} 87. Ng6 {[%clk 0:00:03.4]} 87... c4 {[%clk 0:00:07.4]} 0-1

[Event "Late-Titled-Tuesday-Blitz-June-25-2024"]
[Site "Chess.com"]
[Date "2024.06.25"]
[Round "10"]
[White "PoAslan"]
[Black "Sondremelaa"]
[Result "1/2-1/2"]
[WhiteElo "2460"]
[BlackElo "2581"]
[TimeControl "180+1"]
[EndTime "15:57:45 PDT"]
[Termination "Game drawn by stalemate"]

1. e4 {[%clk 0:03:00.9]} 1... e5 {[%clk 0:02:56.5]} 2. Nf3 {[%clk 0:03:00.3]}
2... Nc6 {[%clk 0:02:57.1]} 3. Nc3 {[%clk 0:02:59.6]} 3... Nf6 {[%clk
0:02:57.3]} 4. h3 {[%clk 0:02:59.9]} 4... d5 {[%clk 0:02:56.5]} 5. exd5 {[%clk
0:02:59.4]} 5... Nxd5 {[%clk 0:02:57.4]} 6. Bb5 {[%clk 0:02:59.4]} 6... Nxc3
{[%clk 0:02:55.2]} 7. bxc3 {[%clk 0:03:00.3]} 7... Bd6 {[%clk 0:02:55.2]} 8. O-O
{[%clk 0:03:00.2]} 8... O-O {[%clk 0:02:55.1]} 9. d4 {[%clk 0:03:00.3]} 9...
exd4 {[%clk 0:02:54.3]} 10. cxd4 {[%clk 0:02:59.5]} 10... h6 {[%clk 0:02:53.8]}
11. c4 {[%clk 0:02:58.4]} 11... a6 {[%clk 0:02:43.2]} 12. Ba4 {[%clk 0:02:58.3]}
12... Qf6 {[%clk 0:02:34]} 13. Bc2 {[%clk 0:02:53.5]} 13... Bf5 {[%clk
0:02:31.3]} 14. Bb2 {[%clk 0:02:51.6]} 14... Rad8 {[%clk 0:02:25.5]} 15. Bxf5
{[%clk 0:02:48.6]} 15... Qxf5 {[%clk 0:02:25.6]} 16. d5 {[%clk 0:02:42.7]} 16...
Ne5 {[%clk 0:02:16.4]} 17. Nxe5 {[%clk 0:02:38.2]} 17... Bxe5 {[%clk 0:02:16.4]}
18. Bxe5 {[%clk 0:02:38]} 18... Qxe5 {[%clk 0:02:17.3]} 19. Qb3 {[%clk
0:02:34.4]} 19... b6 {[%clk 0:02:15.9]} 20. Rfe1 {[%clk 0:02:33.7]} 20... Qd6
{[%clk 0:02:15.7]} 21. a4 {[%clk 0:02:33.1]} 21... a5 {[%clk 0:02:13.9]} 22. Qb5
{[%clk 0:02:33.3]} 22... Qd7 {[%clk 0:02:10.3]} 23. Qxd7 {[%clk 0:02:23.7]}
23... Rxd7 {[%clk 0:02:11.2]} 24. Re3 {[%clk 0:02:21.1]} 24... Rc8 {[%clk
0:02:11.1]} 25. Rb1 {[%clk 0:02:17.5]} 25... Kf8 {[%clk 0:02:11]} 26. f4 {[%clk
0:02:16.5]} 26... c6 {[%clk 0:02:08.1]} 27. Rxb6 {[%clk 0:02:14]} 27... cxd5
{[%clk 0:02:08]} 28. cxd5 {[%clk 0:02:14.5]} 28... Rxd5 {[%clk 0:02:08.2]} 29.
Rb7 {[%clk 0:02:09.4]} 29... g6 {[%clk 0:02:04.7]} 30. Rb5 {[%clk 0:01:46.7]}
30... Rxb5 {[%clk 0:01:46.4]} 31. axb5 {[%clk 0:01:47.6]} 31... Rc1+ {[%clk
0:01:46.5]} 32. Kf2 {[%clk 0:01:46.3]} 32... Rb1 {[%clk 0:01:47]} 33. Re5 {[%clk
0:01:45.3]} 33... a4 {[%clk 0:01:42.9]} 34. Re4 {[%clk 0:01:44.8]} 34... a3
{[%clk 0:01:41.9]} 35. Ra4 {[%clk 0:01:45.1]} 35... Rb2+ {[%clk 0:01:41.2]} 36.
Kf3 {[%clk 0:01:45.2]} 36... a2 {[%clk 0:01:39.8]} 37. b6 {[%clk 0:01:45.2]}
37... Rb3+ {[%clk 0:01:34.3]} 38. Kg4 {[%clk 0:01:43]} 38... Kg7 {[%clk
0:01:13.1]} 39. b7 {[%clk 0:01:28.2]} 39... h5+ {[%clk 0:01:06.8]} 40. Kh4
{[%clk 0:01:25.8]} 40... Kh6 {[%clk 0:01:01.9]} 41. g4 {[%clk 0:01:18.6]} 41...
hxg4 {[%clk 0:00:40.7]} 42. hxg4 {[%clk 0:01:19.5]} 42... Rxb7 {[%clk 0:00:38]}
43. Rxa2 {[%clk 0:01:19.2]} 43... Rb4 {[%clk 0:00:37.3]} 44. Rf2 {[%clk
0:01:16.9]} 44... f6 {[%clk 0:00:35.3]} 45. Kg3 {[%clk 0:01:16.7]} 45... Rb3+
{[%clk 0:00:33.2]} 46. Rf3 {[%clk 0:01:17.1]} 46... Rb2 {[%clk 0:00:33.6]} 47.
Re3 {[%clk 0:01:16.3]} 47... Rb6 {[%clk 0:00:29.9]} 48. Re7 {[%clk 0:01:15.6]}
48... Ra6 {[%clk 0:00:29.8]} 49. Kh3 {[%clk 0:01:11.8]} 49... Ra3+ {[%clk
0:00:29.7]} 50. Kh2 {[%clk 0:01:11.8]} 50... f5 {[%clk 0:00:28.9]} 51. gxf5
{[%clk 0:01:05.7]} 51... gxf5 {[%clk 0:00:28.7]} 52. Re5 {[%clk 0:01:05.7]}
52... Kg6 {[%clk 0:00:26.9]} 53. Kg2 {[%clk 0:01:06.3]} 53... Rb3 {[%clk
0:00:25.3]} 54. Kf2 {[%clk 0:01:03.9]} 54... Rb4 {[%clk 0:00:21]} 55. Kg3 {[%clk
0:01:01.3]} 55... Rb6 {[%clk 0:00:19.8]} 56. Kh4 {[%clk 0:00:57.8]} 56... Rc6
{[%clk 0:00:20.2]} 57. Rb5 {[%clk 0:00:57.7]} 57... Kf6 {[%clk 0:00:20.1]} 58.
Kh5 {[%clk 0:00:54.6]} 58... Rd6 {[%clk 0:00:20.4]} 59. Ra5 {[%clk 0:00:54.1]}
59... Re6 {[%clk 0:00:20.6]} 60. Rc5 {[%clk 0:00:52.4]} 60... Rd6 {[%clk
0:00:19.4]} 61. Rc8 {[%clk 0:00:51.4]} 61... Rd1 {[%clk 0:00:12.8]} 62. Rf8+
{[%clk 0:00:51.4]} 62... Ke6 {[%clk 0:00:13.1]} 63. Re8+ {[%clk 0:00:50.5]}
63... Kf7 {[%clk 0:00:12.3]} 64. Ra8 {[%clk 0:00:47.4]} 64... Kf6 {[%clk
0:00:11.1]} 65. Ra6+ {[%clk 0:00:47]} 65... Kf7 {[%clk 0:00:11.5]} 66. Kg5
{[%clk 0:00:47.2]} 66... Rd5 {[%clk 0:00:11.6]} 67. Rf6+ {[%clk 0:00:46]} 67...
Kg7 {[%clk 0:00:12.3]} 68. Ra6 {[%clk 0:00:44.1]} 68... Kf7 {[%clk 0:00:12.1]}
69. Ra7+ {[%clk 0:00:44.3]} 69... Ke6 {[%clk 0:00:11.5]} 70. Rg7 {[%clk
0:00:44.1]} 70... Ra5 {[%clk 0:00:09.9]} 71. Rh7 {[%clk 0:00:44.1]} 71... Rb5
{[%clk 0:00:09.6]} 72. Rh6+ {[%clk 0:00:44.8]} 72... Ke7 {[%clk 0:00:09.8]} 73.
Rf6 {[%clk 0:00:44.4]} 73... Ra5 {[%clk 0:00:09.7]} 74. Kg6 {[%clk 0:00:44]}
74... Rb5 {[%clk 0:00:09.2]} 75. Rc6 {[%clk 0:00:40.6]} 75... Ra5 {[%clk
0:00:09.5]} 76. Rb6 {[%clk 0:00:39.4]} 76... Rc5 {[%clk 0:00:09.2]} 77. Rb7+
{[%clk 0:00:37.9]} 77... Ke6 {[%clk 0:00:08]} 78. Rb8 {[%clk 0:00:38.3]} 78...
Ke7 {[%clk 0:00:07.5]} 79. Rb3 {[%clk 0:00:36.2]} 79... Ra5 {[%clk 0:00:06.7]}
80. Re3+ {[%clk 0:00:36.4]} 80... Kf8 {[%clk 0:00:04.4]} 81. Re6 {[%clk
0:00:34.6]} 81... Rb5 {[%clk 0:00:03.2]} 82. Kf6 {[%clk 0:00:32.2]} 82... Ra5
{[%clk 0:00:02.7]} 83. Rb6 {[%clk 0:00:30.7]} 83... Ra8 {[%clk 0:00:02.3]} 84.
Rb7 {[%clk 0:00:27.2]} 84... Ra6+ {[%clk 0:00:01.7]} 85. Kxf5 {[%clk 0:00:27.6]}
85... Rc6 {[%clk 0:00:02]} 86. Kg5 {[%clk 0:00:27.3]} 86... Ra6 {[%clk
0:00:02.4]} 87. Rc7 {[%clk 0:00:24.6]} 87... Rb6 {[%clk 0:00:02.7]} 88. Kf5
{[%clk 0:00:23.6]} 88... Ra6 {[%clk 0:00:03]} 89. Rd7 {[%clk 0:00:21.4]} 89...
Rb6 {[%clk 0:00:03.6]} 90. Ke5 {[%clk 0:00:21.6]} 90... Ra6 {[%clk 0:00:04]} 91.
f5 {[%clk 0:00:20]} 91... Rb6 {[%clk 0:00:04.6]} 92. Rd6 {[%clk 0:00:19.4]}
92... Rxd6 {[%clk 0:00:04.5]} 93. Kxd6 {[%clk 0:00:19.8]} 93... Kf7 {[%clk
0:00:05.4]} 94. Ke5 {[%clk 0:00:20.5]} 94... Ke7 {[%clk 0:00:06.1]} 95. f6+
{[%clk 0:00:21.1]} 95... Kf7 {[%clk 0:00:06.9]} 96. Kf5 {[%clk 0:00:20.8]} 96...
Kf8 {[%clk 0:00:07.3]} 97. Kf4 {[%clk 0:00:20.3]} 97... Kf7 {[%clk 0:00:07.7]}
98. Kg5 {[%clk 0:00:21.2]} 98... Kf8 {[%clk 0:00:08.1]} 99. Kh6 {[%clk 0:00:22]}
99... Kf7 {[%clk 0:00:08.4]} 100. Kg5 {[%clk 0:00:22.9]} 100... Kf8 {[%clk
0:00:07.7]} 101. Kg6 {[%clk 0:00:23.8]} 101... Kg8 {[%clk 0:00:07.6]} 102. Kf5
{[%clk 0:00:24.7]} 102... Kf7 {[%clk 0:00:07.4]} 103. Ke5 {[%clk 0:00:25.6]}
103... Kf8 {[%clk 0:00:07.4]} 104. Ke6 {[%clk 0:00:26.5]} 104... Ke8 {[%clk
0:00:07.4]} 105. f7+ {[%clk 0:00:27.4]} 105... Kf8 {[%clk 0:00:03.2]} 106. Kf6
{[%clk 0:00:28.3]} 1/2-1/2